fUSD/lending_fUSD_20250226
["ID","MTS","AMOUNT","RATE_DAILY","PERIOD"]
[354524112,1740556234359,-500.0,0.00043835,120]
[354524115,1740556234369,-334.67121609,0.00043835,120]
[354524117,1740556234383,-353.25878391,0.00043835,120]
[354524119,1740556234391,-146.08995952,0.00043835,120]
[354524158,1740556238052,-353.91004048,0.00043835,120]
[354524160,1740556238061,-500.0,0.00043835,120]
[354524161,1740556238070,-965.62,0.00043835,120]
[354524162,1740556238079,-1616.84,0.00043835,120]
[354524163,1740556238089,-500.0,0.00043835,120]
[354524164,1740556238098,-1629.98,0.00043835,120]
[354524165,1740556238107,-546.43388387,0.00043835,120]
[354524166,1740556238116,-500.0,0.00043835,120]
[354524167,1740556238125,-500.0,0.00043835,120]
[354524168,1740556238134,-500.0,0.00043835,120]
[354524169,1740556238143,-500.0,0.00043835,120]
[354524170,1740556238152,-500.0,0.00043835,120]
[354524171,1740556238162,-500.0,0.00043835,120]
[354524172,1740556238171,-500.0,0.00043835,120]
[354524173,1740556238180,-500.0,0.00043835,120]
[354524174,1740556238189,-500.0,0.00043835,120]
[354524175,1740556238199,-500.0,0.00043835,120]
[354524176,1740556238208,-1779.39,0.00043835,120]
[354524177,1740556238218,-519.12,0.00043835,120]
[354524178,1740556238227,-500.0,0.00043835,120]
[354524179,1740556238236,-1080.11,0.00043835,120]
[354524180,1740556238245,-500.0,0.00043835,120]
[354524181,1740556238254,-1610.21,0.00043835,120]
[354524182,1740556238263,-644.63,0.00043835,120]
[354524183,1740556238273,-500.0,0.00043835,120]
[354524184,1740556238282,-1364.58,0.00043835,120]
[354524185,1740556238292,-502.57943275,0.00043835,120]
[354524186,1740556238301,-500.0,0.00043835,120]
[354524187,1740556238311,-500.0,0.00043835,120]
[354524188,1740556238320,-972.31,0.00043835,120]
[354524189,1740556238329,-1484.66,0.00043835,120]
[354524190,1740556238338,-500.0,0.00043835,120]
[354524191,1740556238347,-1495.52,0.00043835,120]
[354524192,1740556238356,-500.0,0.00043835,120]
[354524193,1740556238368,-1467.66,0.00043835,120]
[354524194,1740556238378,-951.1,0.00043835,120]
[354524195,1740556238391,-527.42,0.00043835,120]
[354524196,1740556238404,-540.44,0.00043835,120]
[354524197,1740556238417,-500.0,0.00043835,120]
[354524198,1740556238428,-1712.32,0.00043835,120]
[354524199,1740556238440,-500.0,0.00043835,120]
[354524200,1740556238450,-500.0,0.00043835,120]
[354524201,1740556238460,-500.94512463,0.00043835,120]
[354524202,1740556238470,-500.0,0.00043835,120]
[354524203,1740556238484,-200.0,0.00043835,7]
[354524204,1740556238494,-1066.94,0.00043835,120]
[354524205,1740556238505,-1223.53,0.00043835,120]
[354524206,1740556238518,-1631.64,0.00043835,120]
[354524207,1740556238530,-500.0,0.00043835,120]
[354524208,1740556238540,-500.0,0.00043835,120]
[354524210,1740556238552,-500.0,0.00043835,120]
[354524212,1740556238562,-500.0,0.00043835,120]
[354524214,1740556238572,-500.0,0.00043835,120]
[354524216,1740556238582,-863.96,0.00043835,120]
[354524218,1740556238591,-791.75,0.00043835,120]
[354524219,1740556238600,-442.68872327,0.00043835,120]
[354524221,1740556238610,-500.0,0.00043835,120]
[354524223,1740556238621,-504.20639759,0.00043835,120]
[354524225,1740556238629,-500.0,0.00043835,120]
[354524227,1740556238640,-500.0,0.00043835,120]
[354524229,1740556238651,-561.66015792,0.00043835,120]
[354524231,1740556238659,-2929.81,0.00043835,120]
[354524233,1740556238669,-608.13249569,0.00043835,120]
[354524235,1740556238679,-742.7,0.00043835,120]
[354524237,1740556238688,-1886.97,0.00043835,120]
[354524239,1740556238698,-895.23,0.00043835,120]
[354524241,1740556238708,-1928.72,0.00043835,120]
[354524242,1740556238718,-1304.54,0.00043835,120]
[354524244,1740556238727,-3383.17,0.00043835,120]
[354524246,1740556238737,-861.32,0.00043835,120]
[354524248,1740556238748,-500.0,0.00043835,120]
[354524250,1740556238758,-502.55484371,0.00043835,120]
[354524252,1740556238767,-504.43398488,0.00043835,120]
[354524254,1740556238776,-1579.7,0.00043835,120]
[354524256,1740556238786,-500.0,0.00043835,120]
[354524258,1740556238796,-2748.78,0.00043835,120]
[354524260,1740556238805,-500.0,0.00043835,120]
[354524262,1740556238815,-500.0,0.00043835,120]
[354524264,1740556238825,-2006.29,0.00043835,120]
[354524266,1740556238835,-384.07262601,0.00043835,120]
[354524268,1740556238844,-251.93184809,0.00043835,120]
[354524270,1740556238853,-1228.37,0.00043835,120]
[354524272,1740556238862,-504.99232928,0.00043835,120]
[354524274,1740556238871,-500.0,0.00043835,120]
[354524276,1740556238881,-902.65,0.00043835,120]
[354524278,1740556238891,-972.24,0.00043835,120]
[354524280,1740556238900,-1457.7,0.00043835,120]
[354524282,1740556238909,-1608.81,0.00043835,120]
[354524284,1740556238918,-500.0,0.00043835,120]
[354524286,1740556238927,-708.52,0.00043835,120]
[354524288,1740556238936,-500.0,0.00043835,120]
[354524291,1740556238945,-500.0,0.00043835,120]
[354524292,1740556238954,-1466.87,0.00043835,120]
[354524295,1740556238963,-1248.53,0.00043835,120]
[354524297,1740556238973,-500.0,0.00043835,120]
[354524299,1740556238982,-2568.08,0.00043835,120]
[354524301,1740556238991,-1167.2,0.00043835,120]
[354524303,1740556239000,-500.0,0.00043835,120]
[354524305,1740556239009,-503.0241867,0.00043835,120]
[354524307,1740556239018,-3214.08,0.00043835,120]
[354524308,1740556239027,-542.26,0.00043835,120]
[354524310,1740556239037,-738.08,0.00043835,120]
[354524312,1740556239046,-1789.38,0.00043835,120]
[354524314,1740556239055,-2248.32,0.00043835,30]
[354524316,1740556239064,-776.77,0.00043835,120]
[354524318,1740556239073,-500.0,0.00043835,120]
[354524320,1740556239082,-562.4,0.00043835,120]
[354524322,1740556239091,-500.0,0.00043835,120]
[354524324,1740556239100,-2365.43,0.00043835,120]
[354524327,1740556239109,-2478.36,0.00043835,120]
[354524329,1740556239119,-500.0,0.00043835,120]
[354524330,1740556239129,-500.0,0.00043835,120]
[354524332,1740556239138,-3705.02,0.00043835,120]
[354524335,1740556239148,-500.0,0.00043835,120]
[354524337,1740556239158,-1804.42,0.00043835,120]
[354524339,1740556239166,-1978.73,0.00043835,120]
[354524341,1740556239175,-1473.49,0.00043835,120]
[354524342,1740556239184,-1021.35,0.00043835,120]
[354524344,1740556239193,-817.35,0.00043835,120]
[354524347,1740556239202,-1176.24,0.00043835,120]
[354524349,1740556239211,-500.0,0.00043835,120]
[354524350,1740556239220,-500.0,0.00043835,120]
[354524352,1740556239229,-500.0,0.00043835,120]
[354524354,1740556239238,-500.0,0.00043835,120]
[354524356,1740556239247,-1666.47,0.00043835,120]
[354524359,1740556239257,-273.12094789,0.00043835,120]
[354524360,1740556239266,-500.0,0.00043835,120]
[354524363,1740556239276,-3153.62,0.00043835,120]
[354524365,1740556239287,-663.84,0.00043835,120]
[354524366,1740556239297,-500.0,0.00043835,120]
[354524369,1740556239306,-705.73,0.00043835,120]
[354524371,1740556239316,-1267.36,0.00043835,120]
[354524373,1740556239325,-1857.53,0.00043835,120]
[354524374,1740556239335,-500.0,0.00043835,120]
[354524377,1740556239344,-734.8,0.00043835,120]
[354524378,1740556239353,-500.0,0.00043835,120]
[354524380,1740556239363,-1848.87,0.00043835,120]
[354524383,1740556239372,-500.0,0.00043835,120]
[354524385,1740556239382,-1586.55,0.00043835,120]
[354524387,1740556239391,-649.35233708,0.00043835,120]
[354524389,1740556239409,-1199.82766292,0.00043835,120]
[354524391,1740556239419,-2025.65,0.00043835,120]
[354524393,1740556239428,-500.0,0.00043835,120]
[354524395,1740556239437,-500.0,0.00043835,120]
[354524397,1740556239446,-500.0,0.00043835,120]
[354524399,1740556239456,-502.07826405,0.00043835,120]
[354524401,1740556239465,-1593.42,0.00043835,120]
[354524404,1740556239478,-500.0,0.00043835,120]
[354524406,1740556239487,-500.0,0.00043835,120]
[354524407,1740556239496,-1470.31,0.00043835,120]
[354524409,1740556239506,-1786.22,0.00043835,120]
[354524411,1740556239515,-706.03,0.00043835,120]
[354524413,1740556239524,-500.0,0.00043835,120]
[354524415,1740556239536,-500.0,0.00043835,120]
[354524418,1740556239546,-647.05,0.00043835,120]
[354524420,1740556239555,-1737.42,0.00043835,120]
[354524422,1740556239564,-2359.89,0.00043835,120]
[354524424,1740556239575,-500.0,0.00043835,120]
[354524426,1740556239584,-504.15998337,0.00043835,120]
[354524428,1740556239593,-500.0,0.00043835,120]
[354524430,1740556239602,-501.93846491,0.00043835,120]
[354524432,1740556239611,-500.0,0.00043835,120]
[354524434,1740556239620,-933.64,0.00043835,120]
[354524435,1740556239629,-1532.78,0.00043835,120]
[354524452,1740556239830,-500.0,0.00043835,120]
[354524453,1740556239889,-500.0,0.00043835,120]
[354524455,1740556239899,-2115.17,0.00043835,120]
[354524457,1740556239908,-926.27,0.00043835,120]
[354524459,1740556239918,-500.0,0.00043835,120]
[354524461,1740556239928,-500.0,0.00043835,120]
[354524463,1740556239937,-500.0,0.00043835,120]
[354524465,1740556239946,-2259.98,0.00043835,120]
[354524467,1740556239955,-1370.52,0.00043835,120]
[354524469,1740556239964,-1006.64,0.00043835,120]
[354524471,1740556239973,-500.0,0.00043835,120]
[354524473,1740556239982,-500.0,0.00043835,120]
[354524475,1740556239991,-1171.58,0.00043835,120]
[354524477,1740556240000,-500.0,0.00043835,120]
[354524480,1740556240010,-784.81,0.00043835,120]
[354524482,1740556240019,-1049.01,0.00043835,120]
[354524484,1740556240028,-500.0,0.00043835,120]
[354524486,1740556240038,-1427.26,0.00043835,120]
[354524487,1740556240047,-529.4,0.00043835,120]
[354524489,1740556240056,-1176.81,0.00043835,120]
[354524491,1740556240066,-1635.89,0.00043835,120]
[354524493,1740556240075,-625.54,0.00043835,60]
[354524495,1740556240084,-580.48991889,0.00043835,120]
[354524497,1740556240093,-2009.62,0.00043835,120]
[354524500,1740556240102,-1146.83,0.00043835,120]
[354524502,1740556240111,-2346.18,0.00043835,120]
[354524504,1740556240120,-1268.07,0.00043835,120]
[354524507,1740556240129,-500.0,0.00043835,120]
[354524509,1740556240139,-554.16,0.00043835,120]
[354524510,1740556240148,-500.0,0.00043835,120]
[354524512,1740556240157,-999.12,0.00043835,120]
[354524514,1740556240166,-714.53,0.00043835,120]
[354524516,1740556240175,-279.05357992,0.00043835,120]
[354524519,1740556240189,-2828.14642008,0.00043835,120]
[354524521,1740556240199,-500.0,0.00043835,120]
[354524523,1740556240208,-2749.69,0.00043835,120]
[354524525,1740556240217,-500.0,0.00043835,120]
[354524527,1740556240226,-507.46,0.00043835,120]
[354524529,1740556240236,-2106.73,0.00043835,120]
[354524531,1740556240244,-1075.78,0.00043835,120]
[354524533,1740556240253,-789.19,0.00043835,120]
[354524535,1740556240262,-2926.14,0.00043835,120]
[354524537,1740556240271,-746.99,0.00043835,30]
[354524539,1740556240281,-500.0,0.00043835,120]
[354524541,1740556240290,-500.0,0.00043835,120]
[354524543,1740556240298,-506.65554509,0.00043835,120]
[354524545,1740556240309,-500.0,0.00043835,120]
[354524547,1740556240318,-2592.52,0.00043835,120]
[354524549,1740556240327,-1308.91,0.00043835,120]
[354524551,1740556240336,-501.41020249,0.00043835,120]
[354524553,1740556240345,-1121.37,0.00043835,120]
[354524555,1740556240353,-859.53,0.00043835,120]
[354524557,1740556240363,-500.0,0.00043835,120]
[354524559,1740556240372,-1269.67,0.00043835,120]
[354524561,1740556240381,-500.0,0.00043835,120]
[354524563,1740556240391,-3021.01920228,0.00043835,120]
[354524566,1740556240410,-201.01079772,0.00043835,120]
[354524568,1740556240420,-343.31647475,0.00043835,120]
[354524571,1740556240435,-156.68352525,0.00043835,120]
[354524572,1740556240445,-300.42838588,0.00043835,120]
[354524575,1740556240456,-199.57161412,0.00043835,120]
[354524577,1740556240465,-2635.68,0.00043835,120]
[354524579,1740556240477,-506.48589436,0.00043835,120]
[354524581,1740556240486,-500.0,0.00043835,120]
[354524583,1740556240495,-500.0,0.00043835,120]
[354524585,1740556240504,-921.2,0.00043835,120]
[354524587,1740556240515,-2508.17,0.00043835,120]
[354524589,1740556240527,-505.23415415,0.00043835,120]
[354524591,1740556240537,-886.4,0.00043835,120]
[354524593,1740556240547,-713.77,0.00043835,120]
[354524595,1740556240556,-500.0,0.00043835,120]
[354524597,1740556240566,-610.46,0.00043835,120]
[354524599,1740556240575,-500.0,0.00043835,120]
[354524601,1740556240584,-500.0,0.00043835,120]
[354524603,1740556240592,-3057.62,0.00043835,120]
[354524605,1740556240601,-500.0,0.00043835,120]
[354524607,1740556240610,-500.0,0.00043835,7]
[354524609,1740556240619,-1723.15833737,0.00043835,120]
[354524611,1740556240631,-334.67166263,0.00043835,120]
[354524613,1740556240643,-862.04630058,0.00043835,120]
[354524616,1740556240665,-235.16369942,0.00043835,120]
[354524618,1740556240674,-38.79083702,0.00043835,120]
[354524673,1740556241173,-706.68566431,0.00043835,120]
[354524675,1740556241184,-60.91349867,0.00043835,120]
[354524677,1740556241194,-500.0,0.00043835,120]
[354524679,1740556241203,-124.69859008,0.00043835,120]
[354524681,1740556241214,-2030.75140992,0.00043835,120]
[354524683,1740556241223,-500.0,0.00043835,120]
[354524685,1740556241232,-500.0,0.00043835,120]
[354524687,1740556241241,-500.0,0.00043835,120]
[354524689,1740556241250,-794.97,0.00043835,120]
[354524691,1740556241260,-500.0,0.00043835,120]
[354524693,1740556241270,-536.08,0.00043835,120]
[354524695,1740556241279,-1830.33,0.00043835,120]
[354524697,1740556241289,-1649.57,0.00043835,120]
[354524699,1740556241300,-500.0,0.00043835,120]
[354524701,1740556241310,-500.0,0.00043835,120]
[354524703,1740556241319,-500.0,0.00043835,120]
[354524705,1740556241328,-698.22,0.00043835,120]
[354524707,1740556241338,-500.0,0.00043835,120]
[354524709,1740556241347,-1541.2,0.00043835,120]
[354524711,1740556241357,-1039.7,0.00043835,120]
[354524713,1740556241366,-878.78209008,0.00043835,120]
[354524725,1740556241483,-625.34,0.00043835,120]
[354525165,1740556246535,-220.79790992,0.00043835,120]
[354525166,1740556246544,-500.0,0.00043835,120]
[354525167,1740556246555,-500.0,0.00043835,120]
[354525168,1740556246565,-2612.0,0.00043835,120]
[354525169,1740556246575,-2180.22,0.00043835,120]
[354525170,1740556246584,-511.74516413,0.00043835,120]
[354525171,1740556246593,-2602.37,0.00043835,120]
[354525172,1740556246602,-500.0,0.00043835,120]
[354525173,1740556246611,-500.0,0.00043835,120]
[354525175,1740556246621,-191.65264936,0.00043835,120]
[354525177,1740556246630,-653.21,0.00043835,120]
[354525179,1740556246639,-3019.36,0.00043835,120]
[354525181,1740556246649,-500.0,0.00043835,120]
[354525183,1740556246658,-2499.16,0.00043835,120]
[354525185,1740556246667,-1031.47,0.00043835,120]
[354525187,1740556246676,-500.0,0.00043835,120]
[354525189,1740556246685,-500.0,0.00043835,120]
[354525190,1740556246694,-500.0,0.00043835,120]
[354525192,1740556246703,-309.57899887,0.00043835,120]
[354525194,1740556246712,-500.0,0.00043835,120]
[354525196,1740556246722,-1506.62,0.00043835,120]
[354525198,1740556246731,-1947.59,0.00043835,120]
[354525200,1740556246740,-500.0,0.00043835,120]
[354525202,1740556246749,-869.25,0.00043835,120]
[354525204,1740556246759,-1000.0,0.00043835,120]
[354525206,1740556246768,-1000.0,0.00043835,120]
[354525208,1740556246777,-1000.0,0.00043835,120]
[354525210,1740556246787,-1000.0,0.00043835,120]
[354525212,1740556246796,-282.89,0.00043835,120]
[354525214,1740556246805,-1205.37,0.00043835,120]
[354525216,1740556246815,-500.0,0.00043835,120]
[354525218,1740556246824,-1570.86,0.00043835,120]
[354525220,1740556246834,-2839.25,0.00043835,120]
[354525222,1740556246843,-1726.76,0.00043835,120]
[354525224,1740556246852,-500.0,0.00043835,120]
[354525226,1740556246862,-500.0,0.00043835,120]
[354525228,1740556246871,-500.0,0.00043835,120]
[354525230,1740556246880,-500.0,0.00043835,120]
[354525232,1740556246888,-500.0,0.00043835,120]
[354525234,1740556246898,-500.0,0.00043835,120]
[354525236,1740556246907,-1981.61,0.00043835,120]
[354525238,1740556246915,-500.0,0.00043835,120]
[354525240,1740556246925,-500.0,0.00043835,120]
[354525242,1740556246934,-500.0,0.00043835,120]
[354525244,1740556246943,-1651.44,0.00043835,120]
[354525246,1740556246952,-500.0,0.00043835,120]
[354525248,1740556246962,-1641.14,0.00043835,120]
[354525250,1740556246971,-2197.37,0.00043835,120]
[354525252,1740556246980,-553.16,0.00043835,120]
[354525254,1740556246989,-1248.91,0.00043835,120]
[354525256,1740556246999,-1038.81,0.00043835,120]
[354525258,1740556247008,-785.39,0.00043835,120]
[354525260,1740556247017,-563.86753898,0.00043835,120]
[354525262,1740556247025,-936.32,0.00043835,120]
[354525264,1740556247034,-500.0,0.00043835,120]
[354525266,1740556247045,-936.32,0.00043835,120]
[354525268,1740556247054,-936.32,0.00043835,120]
[354525270,1740556247063,-936.32,0.00043835,120]
[354525272,1740556247072,-936.32,0.00043835,120]
[354525273,1740556247081,-936.32,0.00043835,120]
[354525274,1740556247091,-500.0,0.00043835,120]
[354525275,1740556247100,-500.0,0.00043835,120]
[354525276,1740556247108,-500.0,0.00043835,120]
[354525277,1740556247117,-654.65,0.00043835,120]
[354525278,1740556247126,-500.0,0.00043835,120]
[354525279,1740556247135,-500.0,0.00043835,120]
[354525280,1740556247144,-500.0,0.00043835,120]
[354525281,1740556247153,-3187.81,0.00043835,120]
[354525282,1740556247163,-500.0,0.00043835,120]
[354525283,1740556247172,-1801.28,0.00043835,120]
[354525284,1740556247182,-1477.18,0.00043835,120]
[354525285,1740556247191,-1716.97,0.00043835,120]
[354525287,1740556247200,-1356.61,0.00043835,120]
[354525289,1740556247209,-1249.64,0.00043835,120]
[354525291,1740556247219,-950.99,0.00043835,120]
[354525293,1740556247228,-2743.58,0.00043835,120]
[354525295,1740556247237,-500.0,0.00043835,120]
[354525297,1740556247246,-1274.41,0.00043835,120]
[354525299,1740556247255,-648.78,0.00043835,120]
[354525301,1740556247264,-500.0,0.00043835,120]
[354525303,1740556247274,-1262.26,0.00043835,120]
[354525305,1740556247283,-920.59,0.00043835,120]
[354525307,1740556247294,-1162.12,0.00043835,120]
[354525309,1740556247304,-1354.66,0.00043835,120]
[354525311,1740556247313,-502.19936484,0.00043835,120]
[354525313,1740556247323,-579.7,0.00043835,120]
[354525315,1740556247332,-500.0,0.00043835,120]
[354525317,1740556247341,-1750.4,0.00043835,120]
[354525319,1740556247351,-2019.55,0.00043835,120]
[354525321,1740556247360,-263.7740986,0.00043835,120]
[354525323,1740556247368,-500.0,0.00043835,120]
[354525325,1740556247378,-505.10126777,0.00043835,120]
[354525327,1740556247387,-500.0,0.00043835,120]
[354525329,1740556247396,-500.0,0.00043835,120]
[354525331,1740556247406,-625.39,0.00043835,120]
[354525333,1740556247416,-500.0,0.00043835,120]
[354525335,1740556247425,-1183.8,0.00043835,120]
[354525337,1740556247434,-1418.03,0.00043835,120]
[354525339,1740556247444,-748.83,0.00043835,120]
[354525341,1740556247453,-1512.69,0.00043835,120]
[354525343,1740556247462,-1368.6,0.00043835,60]
[354525345,1740556247471,-3597.93,0.00043835,120]
[354525347,1740556247483,-500.0,0.00043835,120]
[354525349,1740556247492,-500.0,0.00043835,120]
[354525351,1740556247501,-162.715557,0.00043835,120]
[354525353,1740556247510,-500.0,0.00043835,120]
[354525355,1740556247519,-1546.73,0.00043835,120]
[354525357,1740556247529,-500.0,0.00043835,120]
[354525359,1740556247539,-500.0,0.00043835,120]
[354525361,1740556247548,-500.0,0.00043835,120]
[354525363,1740556247558,-500.0,0.00043835,120]
[354525365,1740556247567,-225.25745053,0.00043835,120]
[354525368,1740556247583,-1860.63254947,0.00043835,120]
[354525370,1740556247592,-2517.44,0.00043835,120]
[354525372,1740556247602,-500.0,0.00043835,120]
[354525374,1740556247611,-500.0,0.00043835,120]
[354525376,1740556247621,-500.0,0.00043835,120]
[354525378,1740556247631,-500.0,0.00043835,120]
[354525380,1740556247640,-680.86876869,0.00043835,120]
[354525382,1740556247652,-1488.49123131,0.00043835,120]
[354525384,1740556247662,-1467.24,0.00043835,120]
[354525386,1740556247671,-1046.38,0.00043835,120]
[354525388,1740556247680,-500.0,0.00043835,120]
[354525390,1740556247689,-500.0,0.00043835,120]
[354525414,1740556247874,-500.0,0.00043835,120]
[354525418,1740556247926,-500.0,0.00043835,120]
[354525420,1740556247935,-778.02,0.00043835,120]
[354525422,1740556247944,-2530.29,0.00043835,120]
[354525424,1740556247954,-500.0,0.00043835,120]
[354525426,1740556247963,-500.0,0.00043835,120]
[354525428,1740556247972,-1143.68,0.00043835,120]
[354525430,1740556247981,-500.0,0.00043835,120]
[354525432,1740556247990,-500.0,0.00043835,120]
[354525434,1740556247999,-500.0,0.00043835,120]
[354525436,1740556248008,-500.0,0.00043835,120]
[354525438,1740556248017,-1396.04,0.00043835,120]
[354525440,1740556248026,-1247.2,0.00043835,120]
[354525442,1740556248035,-508.8,0.00043835,120]
[354525444,1740556248045,-1767.38,0.00043835,120]
[354525445,1740556248054,-500.0,0.00043835,120]
[354525448,1740556248064,-2860.32,0.00043835,120]
[354525450,1740556248073,-1750.73,0.00043835,120]
[354525451,1740556248082,-169.4035171,0.00043835,120]
[354525452,1740556248092,-629.02,0.00043835,120]
[354525453,1740556248101,-471.10958883,0.00043835,120]
[354525454,1740556248110,-2391.98,0.00043835,120]
[354525455,1740556248120,-2415.07248,0.00043835,49]
[354525456,1740556248129,-762.83,0.00043835,120]
[354525457,1740556248138,-500.0,0.00043835,120]
[354525458,1740556248147,-984.15,0.00043835,120]
[354525459,1740556248157,-550.09,0.00043835,120]
[354525460,1740556248166,-1908.46,0.00043835,120]
[354525461,1740556248175,-500.0,0.00043835,120]
[354525462,1740556248185,-1348.1,0.00043835,120]
[354525463,1740556248194,-602.95,0.00043835,120]
[354525464,1740556248203,-500.0,0.00043835,120]
[354525465,1740556248214,-1221.01,0.00043835,120]
[354525466,1740556248223,-1108.39,0.00043835,120]
[354525467,1740556248232,-561.19,0.00043835,120]
[354525468,1740556248242,-778.92,0.00043835,120]
[354525469,1740556248251,-2834.91,0.00043835,120]
[354525470,1740556248260,-220.346769,0.00043835,120]
[354525471,1740556248270,-620.33,0.00043835,120]
[354525472,1740556248280,-898.5,0.00043835,120]
[354525473,1740556248291,-500.0,0.00043835,120]
[354525474,1740556248301,-1049.27,0.00043835,120]
[354525475,1740556248311,-500.0,0.00043835,120]
[354525476,1740556248321,-500.0,0.00043835,120]
[354525477,1740556248331,-1300.78,0.00043835,120]
[354525478,1740556248340,-848.54,0.00043835,120]
[354525479,1740556248350,-2121.29,0.00043835,120]
[354525480,1740556248360,-500.0,0.00043835,120]
[354525481,1740556248370,-2000.0,0.00043835,120]
[354525482,1740556248380,-500.0,0.00043835,120]
[354525483,1740556248389,-688.93,0.00043835,120]
[354525484,1740556248399,-2281.44,0.00043835,120]
[354525485,1740556248408,-2394.74,0.00043835,120]
[354525486,1740556248418,-871.1,0.00043835,120]
[354525487,1740556248427,-1036.05,0.00043835,120]
[354525488,1740556248436,-500.0,0.00043835,120]
[354525489,1740556248446,-500.0,0.00043835,120]
[354525490,1740556248456,-3805.3,0.00043835,120]
[354525491,1740556248465,-3383.8,0.00043835,120]
[354525492,1740556248477,-500.0,0.00043835,120]
[354525493,1740556248488,-500.0,0.00043835,120]
[354525494,1740556248498,-2644.84,0.00043835,120]
[354525495,1740556248508,-590.66,0.00043835,120]
[354525496,1740556248519,-500.0,0.00043835,120]
[354525497,1740556248528,-500.0,0.00043835,120]
[354525498,1740556248538,-500.0,0.00043835,120]
[354525499,1740556248548,-500.0,0.00043835,120]
[354525500,1740556248559,-500.0,0.00043835,120]
[354525501,1740556248569,-500.0,0.00043835,120]
[354525502,1740556248579,-542.59277081,0.00043835,120]
[354525503,1740556248588,-2490.53,0.00043835,120]
[354525504,1740556248597,-2397.35,0.00043835,120]
[354525505,1740556248607,-1153.48,0.00043835,120]
[354525506,1740556248616,-1945.59,0.00043835,120]
[354525507,1740556248626,-2081.17159693,0.00043835,120]
[354525508,1740556248640,-1456.85840307,0.00043835,120]
[354525509,1740556248649,-1877.94,0.00043835,120]
[354525510,1740556248659,-744.54651987,0.00043835,120]
[354525511,1740556248670,-1270.10348013,0.00043835,120]
[354525512,1740556248679,-547.56714987,0.00043835,120]
[354525513,1740556248690,-521.37285013,0.00043835,120]
[354525514,1740556248699,-614.95,0.00043835,120]
[354525515,1740556248708,-629.44848937,0.00043835,120]
[354525520,1740556249319,-194.36151063,0.00043835,120]
[354525521,1740556249328,-500.0,0.00043835,120]
[354525522,1740556249338,-910.75786438,0.00043835,120]
[354525523,1740556249558,-759.84213562,0.00043835,120]
[354525524,1740556249567,-516.36507533,0.00043835,120]
[354525525,1740556249775,-88.67492467,0.00043835,120]
[354525526,1740556249784,-481.97507349,0.00043835,120]
[354525530,1740556569795,248.22849531,0.00024749,30]
[354525546,1740557432319,-200.0,0.00021918,2]
[354525547,1740557432330,-200.0,0.00021918,2]
[354525548,1740557432339,-195.67883046,0.00021918,2]
[354525549,1740557432351,-4.32116954,0.00021918,2]
[354525550,1740557432362,-150.0,0.0002411,2]
[354525551,1740557432373,-248.60802955,0.00024749,30]
[354525552,1740557432385,-170.80197045,0.00024749,30]
[354525553,1740557432396,-151.84,0.00026849,2]
[354525554,1740557432405,-421.29225922,0.00037217,2]
[354525555,1740557432425,-555.19774078,0.00037217,2]
[354525556,1740557432434,-244.640025,0.00039096,2]
[354525557,1740557432445,-188.49672002,0.00039152,2]
[354525558,1740557432456,-61.50327998,0.00039152,2]